Cogmind - Beta 13 X1 *** ADVENTURER MODE // 2023.12.04 @ 09:12:35 Player: Minty Result: Destroyed by H-77 Assassin with High-powered Shotgun Performance ------------- Evolutions (6) 3000 Regions Visited (15) 3000 Robots Destroyed (205) 1025 Value Destroyed (8652) 8652 Prototype IDs (16) 320 Alien Tech Used (0) 0 Bonus (4428) 4428 TOTAL SCORE: 20425 Bonus ------- High Alert Combat Kills 1165 Follower Combat Kills 892 Entered DSFs 500 Met Warlord at Base 500 MAIN.C Attacked Warlord 500 Warlord Defense Kills 1058 Friendly Fire -187 Cogmind --------- Core Integrity 0/1150 Matter 147/300 Energy 83/100 System Corruption 12% Temperature Cool (0) Movement Hovering (90) Location -4/Factory Parts ------- > --- POWER (1) -------- (None) > --- PROPULSION (4) --- Advanced Medium Treads Improved Gyrokinetic Inverter > --- UTILITY (9) ------ Improved Target Analyzer Advanced Target Analyzer Improved Hacking Suite System Shield > --- WEAPON (5) ------- Force Lance > --- INVENTORY (5) ---- Long-range Sensor Array Encrypted Comm Array Peak State ------------ > --- POWER ------------ Antimatter Reactor > --- PROPULSION ------- Antigrav System Improved Gyrokinetic Inverter Antigrav Array > --- UTILITY ---------- Advanced Heat Sink Improved Propulsion Shielding Centrium Light Armor Plating Damper Plating Improved Hacking Suite System Shield > --- WEAPON ----------- Wave Gun Dispersion Rifle Cooled Phase Gun Heavy Gauss Cannon Plasma Lance > --- INVENTORY -------- Encrypted Comm Array Advanced Target Analyzer Minesniffer Drone Bay HERF Cannon Matter Neutralizer [Rating: 124] Favorites ----------- Power Angular Momentum Engine Engine Angular Momentum Engine Power Core Light Nuclear Core Reactor Quantum Reactor Propulsion Carbon-fiber Leg Treads Advanced Medium Treads Leg Carbon-fiber Leg Hover Unit Antigrav Array Flight Unit Cooled Cesium-ion Thruster Utility Small Storage Unit Device Improved Heat Sink Storage Small Storage Unit Processor Signal Interpreter Hackware System Shield Protection Improved Heavy Armor Plating Weapon Cooled Pulse Rifle Energy Gun Cooled Pulse Rifle Energy Cannon Light EM Pulse Cannon Ballistic Gun Enhanced Autogun Ballistic Cannon Heavy Gauss Cannon Launcher Proton Missile Launcher Impact Weapon Heavy Mace Slashing Weapon Great Axe Piercing Weapon Force Lance Special Melee Weapon Improved Datajack Build | -11 -10 -9 -8 -8 -7 -6 -6 -5 -5 -5 -5 -4 -4 -4 -4 ------- Run | Jun Mat Mat Mat Sto Fac Fac DSF Fac Upp Upp War Pro Fac Was Fac Slots Evolved 12 | . . 2 2 . 2 2 . 2 . . . . 2 . . Power . | . . . . . . . . . . . . . . . . Propulsion 2 | . . . . . 1 . . 1 . . . . . . . Utility 7 | . . 2 1 . . 1 . 1 . . . . 2 . . Weapon 3 | . . . 1 . 1 1 . . . . . . . . . Parts Attached 194 | . 7 7 4 26 44 5 6 9 8 11 8 4 12 8 35 Power 14 | . 1 . . 4 2 1 . . 1 . 1 . . 1 3 Engine 8 | . 1 . . 3 2 1 . . 1 . . . . . . Core 3 | . . . . 1 . . . . . . 1 . . . 1 Reactor 3 | . . . . . . . . . . . . . . 1 2 Propulsion 33 | . . 4 . 2 10 . 1 2 2 3 1 . 2 1 5 Treads 1 | . . . . . . . . . . . . . . . 1 Leg 26 | . . 4 . 2 10 . 1 2 2 3 1 . 1 . . Wheel . | . . . . . . . . . . . . . . . . Hover 5 | . . . . . . . . . . . . . . 1 4 Flight 1 | . . . . . . . . . . . . . 1 . . Utility 50 | . 1 2 1 3 6 1 3 2 2 2 4 3 5 4 11 Device 23 | . 1 . . 3 1 . . 2 1 2 1 1 3 . 8 Storage . | . . . . . . . . . . . . . . . . Processor 10 | . . 2 . . 2 1 . . 1 . . 1 1 . 2 Hackware 5 | . . . . . 2 . . . . . . 1 1 . 1 Protection 12 | . . . 1 . 1 . 3 . . . 3 . . 4 . Artifact . | . . . . . . . . . . . . . . . . Weapon 97 | . 5 1 3 17 26 3 2 5 3 6 2 1 5 2 16 Energy Gun 30 | . 1 . 1 3 4 3 1 4 . 3 1 . 2 2 5 Energy Cannon 17 | . 3 1 2 7 . . . . . . . . 2 . 2 Ballistic Gun 29 | . . . . 4 19 . 1 . 1 2 . . . . 2 Ballistic Cannon 1 | . . . . . . . . . . . . . . . 1 Launcher 13 | . 1 . . 1 2 . . 1 2 1 1 1 . . 3 Special Weapon . | . . . . . . . . . . . . . . . . Impact Weapon 2 | . . . . 2 . . . . . . . . . . . Slashing Weapon 2 | . . . . . . . . . . . . . 1 . 1 Piercing Weapon 2 | . . . . . . . . . . . . . . . 2 Special Melee Weapon 1 | . . . . . 1 . . . . . . . . . . Unidentified Prototypes 12 | . 1 . 1 2 2 . . 1 . . 1 . 2 1 1 Corrupted Parts 5 | . . . . . . . . . . 2 2 . 1 . . System Corruption 19 | . . . . . . . . . . 4 8 . 7 . . Parts Lost 65 | . . . 2 9 4 1 3 1 2 3 14 3 4 1 18 Power 7 | . . . . 2 . . . . . . 1 . . . 4 Propulsion 14 | . . . . 2 1 . . . 2 . 5 . 1 1 2 Utility 19 | . . . . 3 2 . 1 . . 2 3 2 2 . 4 Weapon 25 | . . . 2 2 1 1 2 1 . 1 5 1 1 . 8 Highest Loss Streak 14 | . . . 2 3 2 1 2 1 1 2 14 3 3 1 14 To Critical Strikes 2 | . . . . . . . . . . . 1 . . . 1 Average Slot Usage (%) 84 | . 89 88 94 95 95 95 88 89 90 82 88 7 21 60 72 Engine 5 | . 14 11 9 8 7 6 6 5 5 5 4 . . . . Leg 16 | . 28 21 18 16 21 20 20 22 19 23 21 . 2 . . Hover 2 | . . . . . . . . . . . . . . 9 13 Device 11 | . 3 11 9 14 12 6 2 6 16 17 25 6 3 5 5 Storage 4 | . 14 11 9 9 7 6 6 5 . . . . . . . Processor 6 | . . 11 18 16 5 8 10 5 5 1 . . 6 5 3 Hackware 3 | . . . . . 5 13 7 . . . . . 2 5 8 Protection 5 | . . . 7 1 3 . 5 11 11 3 7 . . 9 12 Energy Gun 9 | . 6 . . 6 2 19 21 28 17 14 9 . . 13 12 Energy Cannon 4 | . 20 22 24 10 . . . . . . . . 4 . 2 Ballistic Gun 8 | . . . . 4 27 13 6 . 4 9 10 . . . . Launcher 1 | . . . . 1 . . . . 4 3 4 . . . . Naked Turns 40 | . . . . . . . . . . . . 40 . . . Heaviest Build 101 | 12 22 22 28 33 38 39 62 65 65 65 71 10 21 89 101 Greatest Support 70 | 20 20 20 20 20 53 47 47 67 67 70 70 3 20 34 49 Greatest Overweight (x) 4 | . 1 1 1 2 2 . 1 1 1 . 4 3 3 3 2 Average Overweight (x) . | . . 1 . 1 . . . . . . . . . 1 1 Largest Inventory Capacity 8 | . 8 8 8 8 8 8 8 8 8 5 5 5 5 5 5 Average Capacity 6 | . 8 8 8 8 8 8 8 8 5 5 5 5 5 5 5 Most Carried 8 | . 8 8 8 8 8 8 8 8 8 5 5 5 5 5 5 Average Carried 6 | . 6 7 7 7 7 7 7 7 5 4 4 4 4 4 4 Final Capacity 8 | 8 8 8 8 8 8 8 8 8 5 5 5 5 5 5 5 Final Carried 8 | 6 8 8 8 7 8 7 8 8 5 3 5 4 5 5 2 Class Distribution -------------------- 20% | Scavenger-Tank 16% | Scavenger-Skirmisher 15% | Scavenger-Gunner 13% | Hacker-Tank 10% | Mutant 10% | Scavenger-Mutant 5% | Hacker-Gunner 4% | Hacker-Mutant Dominant Class ---------------- Mutant | -10/Materials Mutant | -9/Materials Scavenger-Skirmisher | -8/Materials Scavenger-Skirmisher | -8/Storage Scavenger-Gunner | -7/Factory Hacker-Gunner | -6/Factory Hacker-Gunner | -6/DSF Scavenger-Tank | -5/Factory Scavenger-Tank | -5/Upper Caves Scavenger-Tank | -5/Upper Caves Scavenger-Gunner | -5/Warlord Mutant | -4/Proximity Caves Mutant | -4/Factory Hacker-Tank | -4/Waste Hacker-Tank | -4/Factory Resources | -11 -10 -9 -8 -8 -7 -6 -6 -5 -5 -5 -5 -4 -4 -4 -4 ----------- Run | Jun Mat Mat Mat Sto Fac Fac DSF Fac Upp Upp War Pro Fac Was Fac Matter Collected 4519 | 193 97 60 42 461 2006 . 171 128 171 264 141 88 35 145 517 Remotely 1034 | . . . . . 1034 . . . . . . . . . . Salvage Created 10396 | . 438 232 376 1758 3349 . 677 643 335 579 582 . 71 227 1129 Parts 425 | . 22 13 12 73 166 . 21 21 12 22 21 . 1 . 41 Haulers Intercepted 6 | . 1 . . 2 3 . . . . . . . . . . Recyclers Shooed 7 | . 1 1 1 . 1 . . . . . . . 2 . 1 Parts Field Recycled . | . . . . . . . . . . . . . . . . Retrieved Matter . | . . . . . . . . . . . . . . . . Parts Self-Destructed 11 | . . . . . . . . . 4 7 . . . . . Prevented 22 | . . . . . . . . . 5 17 . . . . . Kills | -11 -10 -9 -8 -8 -7 -6 -6 -5 -5 -5 -5 -4 -4 -4 -4 ------- Run | Jun Mat Mat Mat Sto Fac Fac DSF Fac Upp Upp War Pro Fac Was Fac Combat Hostiles Destroyed 159 | . 7 4 6 32 41 . 12 12 4 8 11 . 1 1 20 Melee 3 | . . . . . . . . . . . . . . . 3 Guns 84 | . . . . 11 35 . 12 7 2 6 4 . . 1 6 Cannons 30 | . 5 2 5 15 . . . . . . . . 1 . 2 AOE 33 | . 2 1 . 4 6 . . 4 1 1 6 . . . 8 Classes Destroyed 21 | . 5 3 . 3 7 . . . 1 . 1 . . 1 . Worker 7 | . 2 . 1 . 3 . . . . . . . . . 1 Builder 7 | . . . . 3 4 . . . . . . . . . . Tunneler 2 | . . . . . 1 . . . . . . . . . 1 Hauler 6 | . 1 . . 2 3 . . . . . . . . . . Recycler 13 | . 2 . . 1 9 . . . . . . . . . 1 Mechanic 3 | . . . . . 2 . . . . . . . . . 1 Operator 2 | . . . . . 2 . . . . . . . . . . Watcher 5 | . . 1 1 1 2 . . . . . . . . . . Swarmer 14 | . 3 . . 3 . . . 5 . . 2 . . . 1 Saboteur 1 | . . . . . . . . . . . 1 . . . . Grunt 81 | . 4 2 5 19 20 . 9 4 3 3 6 . 1 . 5 Brawler 2 | . . . . 1 1 . . . . . . . . . . Duelist 4 | . . 1 . . 1 . 2 . . . . . . . . Protector 1 | . . . . 1 . . . . . . . . . . . Sentry 24 | . . 1 1 8 5 . . 3 . 1 . . . . 5 Specialist 3 | . . . . . 3 . . . . . . . . . . Hunter 17 | . . . . . 7 . . . . 4 2 . . . 4 Programmer 9 | . . . . . 4 . . . . . . . . . 5 Heavy 2 | . . . . . 1 . 1 . . . . . . . . Behemoth 1 | . . . . . . . . . 1 . . . . . . Compactor 1 | . . . . . . . . . . . . . . 1 . Decomposer 1 | . . . . . . . . . 1 . . . . . . Best Kill Streak 17 | . 4 4 4 5 17 . 6 5 3 3 5 . 1 1 4 Combat Bots Only 8 | . 3 4 4 4 8 . 6 5 3 3 5 . 1 1 4 Max Kills in Single Turn 4 | . 2 1 1 1 4 . 1 3 1 1 3 . 1 1 2 Gunslinging 1 | . . . . . . . . . . . 1 . . . . Exploded 3 | . 1 1 . 1 2 . . 3 1 1 2 . . . 2 Melee 1 | . . . . . . . . . . . . . . . 1 Uniques/NPCs Destroyed . | . . . . . . . . . . . . . . . . Combat | -11 -10 -9 -8 -8 -7 -6 -6 -5 -5 -5 -5 -4 -4 -4 -4 -------- Run | Jun Mat Mat Mat Sto Fac Fac DSF Fac Upp Upp War Pro Fac Was Fac Damage Taken 12025 | . 186 77 232 1564 1454 16 652 447 518 729 2088 258 925 12 2867 Core 2240 | . 66 20 21 231 126 . 51 . 39 33 307 192 536 . 618 Absorbed by Shields . | . . . . . . . . . . . . . . . . Redirected to Shielding 169 | . . . 32 57 . . . . . . . . . . 80 Ignored by Resistances 3446 | . 56 22 68 447 436 5 174 125 146 204 589 76 277 4 817 Regen/Repaired (Parts) 237 | . . . . 39 . . . . . . 65 . . 79 54 Core Remaining (%) 77 | 100 73 95 . 54 82 . 94 . . . . 42 . . . Volleys Fired 420 | . 20 10 16 92 103 1 21 21 21 26 15 . 14 2 58 Largest 5 | . 2 2 3 3 4 5 5 5 5 5 5 . 2 3 4 Hottest 300 | . 112 112 168 194 139 116 180 198 230 234 212 . 190 154 300 Shots Fired 1215 | . 37 20 40 201 406 5 84 86 69 74 47 . 18 6 122 Gun 949 | . 4 . . 106 401 5 84 84 64 67 41 . . 6 87 Cannon 221 | . 31 20 40 91 . . . . . . . . 18 . 21 Launcher 45 | . 2 . . 4 5 . . 2 5 7 6 . . . 14 Special . | . . . . . . . . . . . . . . . . Kinetic 533 | . . . . 40 376 2 22 . 19 28 26 . . . 20 Thermal 453 | . 2 . . 101 . 3 62 84 45 29 15 . 18 6 88 Explosive 20 | . 2 . . 4 . . . . . . . . . . 14 Electromagnetic 209 | . 33 20 40 56 30 . . 2 5 17 6 . . . . Robot Hit Streak 25 | . 7 18 12 19 23 8 25 24 18 17 7 . 9 2 17 Robot Miss Streak 4 | . 1 1 1 2 4 1 1 1 1 2 3 . 2 2 4 Penetration Max 3 | . . . . . 1 . . . . . 3 . . . . Secondary Targets 12 | . . . . 1 4 . 4 1 1 . 1 . . . . Max Gunslinging Chain 1 | . . . . 1 1 . 1 1 1 . 1 . . . . Shots Hit Robots 920 | . 26 17 30 161 264 5 74 70 57 54 34 . 16 4 108 Core Hits 452 | . 14 6 12 71 167 3 39 31 13 14 23 . 4 1 54 Critical Kills 10 | . . . . 1 . . . . 1 4 2 . . . 2 Critical Parts Destroyed 21 | . . . . . 4 . . . . 3 7 . . . 7 Critical Strikes 50 | . . . 2 5 4 . 3 3 1 9 10 . . . 13 Burn 16 | . . . . 4 . . 3 3 . 2 1 . . . 3 Meltdown 1 | . . . . . . . . . . . . . . . 1 Destroy 30 | . . . . 1 4 . . . 1 7 9 . . . 8 Corrupt 2 | . . . 2 . . . . . . . . . . . . Sever 1 | . . . . . . . . . . . . . . . 1 Melee Attacks 25 | . . . . 4 . . . . . . . . 2 . 19 Impact 4 | . . . . 4 . . . . . . . . . . . Slashing 21 | . . . . . . . . . . . . . 2 . 19 Piercing . | . . . . . . . . . . . . . . . . Sneak Attacks 4 | . . . . . . . . . . . . . 1 . 3 Combat Hostiles . | . . . . . . . . . . . . . . . . Follow-up Attacks . | . . . . . . . . . . . . . . . . Damage Inflicted 22956 | . 829 411 719 3811 5327 102 1481 1434 1258 1117 1363 . 575 107 4422 Guns 13438 | . 40 . . 1343 4756 102 1481 1234 1082 833 747 . . 107 1713 Cannons 4378 | . 571 368 714 1795 . . . . . . . . 449 . 481 Explosions 4032 | . 218 43 . 523 530 . . 200 176 284 614 . . . 1444 Melee 1060 | . . . . 150 . . . . . . . . 126 . 784 Ramming 48 | . . . 5 . 41 . . . . . 2 . . . . Kinetic 6903 | . . . . 580 4430 44 411 . 366 284 481 . . . 307 Thermal 8778 | . 54 43 . 1901 201 58 1070 1234 716 448 330 . 449 107 2167 Explosive 1722 | . 189 . . 369 . . . . . . . . . . 1164 Electromagnetic 4445 | . 586 368 714 811 655 . . 200 176 385 550 . . . . Impact 150 | . . . . 150 . . . . . . . . . . . Slashing 910 | . . . . . . . . . . . . . 126 . 784 Piercing . | . . . . . . . . . . . . . . . . Highest Corruption 12 | . . . . 2 1 . . . . 4 8 8 11 11 12 Average Corruption 5 | . . . . 2 1 . . . . 3 5 8 5 11 11 Corruption Purged . | . . . . . . . . . . . . . . . . Corruption Blocked 23 | . . . . . 11 . . . 8 4 . . . . . Effects 110 | . . . . 11 13 . . . . 10 6 3 2 15 50 Message Errors 25 | . . . . . 4 . . . . 2 1 . 1 3 14 Matter Fused 26 | . . . . 4 3 . . . . 4 1 2 . 5 7 Heat Flow Errors 13 | . . . . 1 2 . . . . 1 1 . 1 3 4 Energy Discharges 12 | . . . . 1 . . . . . 1 1 . . 2 7 Parts Rejected 2 | . . . . 1 . . . . . . . . . . 1 Parts Fused 3 | . . . . . . . . . . . . . . . 3 Data Loss (minor) 12 | . . . . 2 1 . . . . . . 1 . 1 7 Data Loss (major) 6 | . . . . 1 1 . . . . 1 . . . 1 2 Misfires 3 | . . . . 1 1 . . . . . 1 . . . . Misdirections 2 | . . . . . . . . . . . . . . . 2 Weapon Failures 6 | . . . . . 1 . . . . 1 1 . . . 3 Overload Shots 3 | . . . . . . . 3 . . . . . . . . Effects 1 | . . . . . . . 1 . . . . . . . . Heat Surge 1 | . . . . . . . 1 . . . . . . . . Overflow Damage 510 | . 6 . 8 24 14 . . . 15 . 34 . 66 . 343 Projectiles 34 | . 2 . 8 24 . . . . . . . . . . . Explosions 316 | . 4 . . . 14 . . . 15 . 34 . . . 249 Melee 160 | . . . . . . . . . . . . . 66 . 94 Knockbacks 2 | . . . . 1 . . . . . . . . . . 1 Impact 1 | . . . . 1 . . . . . . . . . . . Kinetic 1 | . . . . . . . . . . . . . . . 1 Secondary . | . . . . . . . . . . . . . . . . Self-Inflicted Damage 276 | . . . . 31 . . . 8 . . 69 . 34 . 134 Shots 11 | . . . . 2 . . . 1 . . 4 . 1 . 3 Rammed . | . . . . . . . . . . . . . . . . Targets Rammed 12 | . . . 3 . 7 . . . . . 2 . . . . Kicked 12 | . . . 3 . 7 . . . . . 2 . . . . Crushed . | . . . . . . . . . . . . . . . . Highest Temperature 589 | . 240 201 326 395 291 . 231 193 197 194 162 15 69 169 589 Average Temperature 102 | . 98 74 111 104 51 . 134 89 126 123 44 15 32 65 163 Received Heat Transfer 3720 | . 72 48 144 837 561 . 351 135 126 99 681 106 353 . 207 Effects 10 | . . . 3 . . . . . . . . . . . 7 Shutdowns 2 | . . . . . . . . . . . . . . . 2 Energy Bleed 3 | . . . . . . . . . . . . . . . 3 Interference 3 | . . . 3 . . . . . . . . . . . . Short Circuit 1 | . . . . . . . . . . . . . . . 1 Damage (core) 1 | . . . . . . . . . . . . . . . 1 Siege Activations . | . . . . . . . . . . . . . . . . Robots Corrupted 6 | . 1 1 1 2 . . . . . . 1 . . . . Combat Hostiles 4 | . . 1 1 1 . . . . . . 1 . . . . Parts Fried 29 | . 3 4 5 2 2 . . 1 1 5 6 . . . . Impact Corruptions . | . . . . . . . . . . . . . . . . Robots Melted 5 | . . . . 1 . . . 1 1 1 . . . . 1 Combat Hostiles 5 | . . . . 1 . . . 1 1 1 . . . . 1 Parts Melted 33 | . . . . 12 . . 2 2 2 4 1 . . . 10 Heat Transferred 15428 | . 124 50 . 3545 100 111 2270 2627 1332 999 555 . 518 185 3012 Parts Sabotaged 2 | . . . . . . . . . . . 2 . . . . Parts Stolen . | . . . . . . . . . . . . . . . . Parts Stripped . | . . . . . . . . . . . . . . . . Power Chain Reactions 8 | . 1 1 . 2 3 . . . . . 1 . . . . Missiles Intercepted . | . . . . . . . . . . . . . . . . Alert | -11 -10 -9 -8 -8 -7 -6 -6 -5 -5 -5 -5 -4 -4 -4 -4 ------- Run | Jun Mat Mat Mat Sto Fac Fac DSF Fac Upp Upp War Pro Fac Was Fac Peak Influence 1047 | . 235 141 251 659 1047 396 523 392 . . . . 352 126 724 Initial 380 | . . 15 50 90 256 380 237 237 . . . . 174 102 77 Average 365 | . 107 99 116 452 559 384 353 267 . . . . 215 122 337 Maximum Alert Level 3 | . 1 . 1 2 3 1 2 1 . . . . 1 . 3 Low Security (%) 27 | . 68 100 79 6 3 . . 23 . . . . 35 100 27 Level 1 35 | . 31 . 20 31 28 100 71 76 . . . . 64 . 30 Level 2 26 | . . . . 61 34 . 28 . . . . . . . 38 Level 3 10 | . . . . . 33 . . . . . . . . . 3 Level 4 . | . . . . . . . . . . . . . . . . Level 5 . | . . . . . . . . . . . . . . . . High Security . | . . . . . . . . . . . . . . . . Max Security . | . . . . . . . . . . . . . . . . Sterilizations 1 | . . . . . . . 1 . . . . . . . . Squads Dispatched 43 | . . . 1 5 21 . 1 3 . . . . 2 . 10 Investigation 9 | . . . . 1 6 . . 1 . . . . 1 . . Extermination 8 | . . . . . 3 . . . . . . . 1 . 4 Reinforcement 18 | . . . 1 3 6 . 1 2 . . . . . . 5 Assault 4 | . . . . 1 2 . . . . . . . . . 1 Garrison 4 | . . . . . 4 . . . . . . . . . . Intercept . | . . . . . . . . . . . . . . . . Searches Triggered . | . . . . . . . . . . . . . . . . Construction Impeded 5 | . . . . 1 2 . . 1 . . . . . . 1 Haulers Reinforced . | . . . . . . . . . . . . . . . . Active Scanning Responses . | . . . . . . . . . . . . . . . . Cargo Convoy Interrupts 1 | . . . . . 1 . . . . . . . . . . Stealth | -11 -10 -9 -8 -8 -7 -6 -6 -5 -5 -5 -5 -4 -4 -4 -4 --------- Run | Jun Mat Mat Mat Sto Fac Fac DSF Fac Upp Upp War Pro Fac Was Fac Distress Signals 13 | . 2 . 2 1 3 . . 1 . . . . 1 . 3 Communications Jammed . | . . . . . . . . . . . . . . . . Distress Signals . | . . . . . . . . . . . . . . . . Times Spotted 269 | . 11 5 12 40 64 . 14 15 4 8 29 4 14 1 48 Peak Tracking Total 11 | . 4 4 4 6 6 . 5 5 3 3 11 4 8 1 6 Tactical Retreats 21 | . 1 . 2 4 2 . 2 1 . . 2 1 3 . 3 Traps | -11 -10 -9 -8 -8 -7 -6 -6 -5 -5 -5 -5 -4 -4 -4 -4 ------- Run | Jun Mat Mat Mat Sto Fac Fac DSF Fac Upp Upp War Pro Fac Was Fac Traps Triggered 11 | . 1 1 . 1 2 1 1 . . . . . 2 . 2 Indirectly . | . . . . . . . . . . . . . . . . Trap Hack Attempts 4 | . . . . . 4 . . . . . . . . . . Triggered . | . . . . . . . . . . . . . . . . Disarmed . | . . . . . . . . . . . . . . . . Reprogrammed 2 | . . . . . 2 . . . . . . . . . . Reused . | . . . . . . . . . . . . . . . . Traps Extracted . | . . . . . . . . . . . . . . . . Installed . | . . . . . . . . . . . . . . . . Triggered 10 | . . . . 1 1 . . . . 1 7 . . . . Time Bombs Activated 1 | . . . . . . . . . . . 1 . . . . Exploded 1 | . . . . . . . . . . . 1 . . . . Machines | -11 -10 -9 -8 -8 -7 -6 -6 -5 -5 -5 -5 -4 -4 -4 -4 ---------- Run | Jun Mat Mat Mat Sto Fac Fac DSF Fac Upp Upp War Pro Fac Was Fac Machines Disabled 23 | . 1 . 1 2 4 . . . . . 2 . 1 . 12 Max in Single Turn 2 | . 1 . 1 1 1 . . . . . 2 . 1 . 2 Garrison Access 1 | . . . . . . . . . . . . . . . 1 Machines Repaired . | . . . . . . . . . . . . . . . . Machines Sabotaged . | . . . . . . . . . . . . . . . . Overloaded Fab Kills . | . . . . . . . . . . . . . . . . Hacking | -11 -10 -9 -8 -8 -7 -6 -6 -5 -5 -5 -5 -4 -4 -4 -4 --------- Run | Jun Mat Mat Mat Sto Fac Fac DSF Fac Upp Upp War Pro Fac Was Fac Machines Accessed 23 | . 2 1 . 4 8 2 . 1 . . . . 1 . 4 Terminals 14 | . 2 1 . 3 3 1 . . . . . . . . 4 Fabricators 5 | . . . . . 4 . . 1 . . . . . . . Repair Stations 3 | . . . . 1 1 . . . . . . . 1 . . Recycling Units . | . . . . . . . . . . . . . . . . Scanalyzers 1 | . . . . . . 1 . . . . . . . . . Garrison Access . | . . . . . . . . . . . . . . . . Total Hacks 73 | . 10 4 . 8 25 5 . 4 . . . . 3 . 14 Successful 45 | . 7 3 . 5 15 4 . 1 . . . . . . 10 Failed 28 | . 3 1 . 3 10 1 . 3 . . . . 3 . 4 Catastrophic 2 | . . . . . 1 . . . . . . . 1 . . Database Lockouts . | . . . . . . . . . . . . . . . . Manual 12 | . 3 . . . 3 . . . . . . . . . 6 Terminals 42 | . 10 4 . 5 8 1 . . . . . . . . 14 Fabricators 18 | . . . . . 14 . . 4 . . . . . . . Repair Stations 9 | . . . . 3 3 . . . . . . . 3 . . Recycling Units . | . . . . . . . . . . . . . . . . Scanalyzers 4 | . . . . . . 4 . . . . . . . . . Garrison Access . | . . . . . . . . . . . . . . . . Terminal Hacks 22 | . 5 3 . 3 3 1 . . . . . . . . 7 Record 2 | . . . . . 2 . . . . . . . . . . Part Schematic 1 | . 1 . . . . . . . . . . . . . . Robot Schematic 1 | . . . . . 1 . . . . . . . . . . Prototype ID Bank 2 | . 1 . . . . . . . . . . . . . 1 Open Door 3 | . . . . 3 . . . . . . . . . . . Open DSF 1 | . . . . . . 1 . . . . . . . . . Branch Access Points 1 | . . . . . . . . . . . . . . . 1 Emergency Access Points 1 | . . 1 . . . . . . . . . . . . . Scanalyzer Index 1 | . 1 . . . . . . . . . . . . . . Alert Level 2 | . . 1 . . . . . . . . . . . . 1 Unreport Threat 2 | . . . . . . . . . . . . . . . 2 Locate Traps 1 | . 1 . . . . . . . . . . . . . . Dispatch Records 1 | . 1 . . . . . . . . . . . . . . Patrol Status 1 | . . . . . . . . . . . . . . . 1 Recall Investigation 1 | . . . . . . . . . . . . . . . 1 Hauler Manifests 1 | . . 1 . . . . . . . . . . . . . Fabricator Hacks 10 | . . . . . 9 . . 1 . . . . . . . Load Schematic 6 | . . . . . 5 . . 1 . . . . . . . Build 4 | . . . . . 4 . . . . . . . . . . Repair Station Hacks 3 | . . . . 2 1 . . . . . . . . . . Scan Component 2 | . . . . 1 1 . . . . . . . . . . Repair 1 | . . . . 1 . . . . . . . . . . . Recycling Unit Hacks . | . . . . . . . . . . . . . . . . Scanalyzer 3 | . . . . . . 3 . . . . . . . . . Insert Component 1 | . . . . . . 1 . . . . . . . . . Analyze 2 | . . . . . . 2 . . . . . . . . . Garrison Access Hacks . | . . . . . . . . . . . . . . . . Unauthorized Hacks 7 | . 2 . . . 2 . . . . . . . . . 3 Terminals 7 | . 2 . . . 2 . . . . . . . . . 3 Botnet 7 | . 2 . . . 2 . . . . . . . . . 3 Fabricators . | . . . . . . . . . . . . . . . . Repair Stations . | . . . . . . . . . . . . . . . . Recycling Units . | . . . . . . . . . . . . . . . . Scanalyzers . | . . . . . . . . . . . . . . . . Garrison Access . | . . . . . . . . . . . . . . . . Data Cores Recovered 2 | . . . . . 2 . . . . . . . . . . Used . | . . . . . . . . . . . . . . . . Hacking Detections 17 | . 1 . . 2 8 1 . 1 . . . . 1 . 3 Full Trace Events 9 | . . . . 1 6 . . 1 . . . . 1 . . Feedback Events . | . . . . . . . . . . . . . . . . Feedback Blocked . | . . . . . . . . . . . . . . . . Robot Schematics Acquired 1 | . . . . . 1 . . . . . . . . . . Robots Built 8 | . . . . . 8 . . . . . . . . . . Authchips . | . . . . . . . . . . . . . . . . Time 348 | . . . . . 348 . . . . . . . . . . Total Robot Build Rating 24 | . . . . . 24 . . . . . . . . . . Part Schematics Acquired 2 | . 1 . . . . 1 . . . . . . . . . Parts Built . | . . . . . . . . . . . . . . . . Authchips . | . . . . . . . . . . . . . . . . Time . | . . . . . . . . . . . . . . . . Total Part Build Rating . | . . . . . . . . . . . . . . . . Parts Repaired 1 | . . . . 1 . . . . . . . . . . . Time 26 | . . . . 26 . . . . . . . . . . . Parts Recycled . | . . . . . . . . . . . . . . . . Recycled Matter . | . . . . . . . . . . . . . . . . Retrieved Matter . | . . . . . . . . . . . . . . . . Retrieved Components . | . . . . . . . . . . . . . . . . Parts Scanalyzed 1 | . . . . . . 1 . . . . . . . . . Part Schematics Acquired 1 | . . . . . . 1 . . . . . . . . . Parts Damaged . | . . . . . . . . . . . . . . . . Bothacking | -11 -10 -9 -8 -8 -7 -6 -6 -5 -5 -5 -5 -4 -4 -4 -4 ------------ Run | Jun Mat Mat Mat Sto Fac Fac DSF Fac Upp Upp War Pro Fac Was Fac Used RIF Installer . | . . . . . . . . . . . . . . . . Robots Hacked . | . . . . . . . . . . . . . . . . Non-combat . | . . . . . . . . . . . . . . . . Combat . | . . . . . . . . . . . . . . . . Robot Hacks Applied . | . . . . . . . . . . . . . . . . Relay Couplers Released 3 | . . . . . . . . . . . . . . . 3 Machine Destruction 3 | . . . . . . . . . . . . . . . 3 Fabnet Peak Effective % . | . . . . . . . . . . . . . . . . Robots Rewired . | . . . . . . . . . . . . . . . . Allies Hacked 1 | . . . . . . . . . . . . . . . 1 Hacks Repelled 2 | . . . . . 2 . . . . . . . . . . Allies | -11 -10 -9 -8 -8 -7 -6 -6 -5 -5 -5 -5 -4 -4 -4 -4 -------- Run | Jun Mat Mat Mat Sto Fac Fac DSF Fac Upp Upp War Pro Fac Was Fac Total Allies 28 | . . . . . 8 . . . . . . . . 20 . Largest Group 20 | . . . . . 4 . . . . . . . . 20 20 Highest-Rated Group 722 | . . . . . 84 . . . . . . . . 722 722 Highest-Rated Ally 50 | . . . . . 21 . . . . . . . . 50 50 Total Orders . | . . . . . . . . . . . . . . . . Ally Attacks 221 | . . . . . 77 . . . . . . . . 32 112 Total Damage 5914 | . . . . . 1724 . . . . . . . . 1391 2799 Kills 33 | . . . . . 15 . . . . . . . . . 18 Allies Corrupted 1 | . . . . . . . . . . . . . . . 1 Allies Melted 1 | . . . . . . . . . . . . . . . 1 Intel | -11 -10 -9 -8 -8 -7 -6 -6 -5 -5 -5 -5 -4 -4 -4 -4 ------- Run | Jun Mat Mat Mat Sto Fac Fac DSF Fac Upp Upp War Pro Fac Was Fac Robot Analysis Total . | . . . . . . . . . . . . . . . . Derelict Logs Recovered 4 | . . . . . . . . . 2 1 . 1 . . . Drone Launches . | . . . . . . . . . . . . . . . . Drone Recoveries . | . . . . . . . . . . . . . . . . Exploration | -11 -10 -9 -8 -8 -7 -6 -6 -5 -5 -5 -5 -4 -4 -4 -4 ------------- Run | Jun Mat Mat Mat Sto Fac Fac DSF Fac Upp Upp War Pro Fac Was Fac Turns Passed 8818 | . 445 334 236 1017 2051 100 303 683 743 406 643 115 255 355 1132 Spaces Moved 5124 | 1 221 154 100 350 1263 79 155 338 440 271 423 211 267 199 652 Core 260 | . . . . . . . . . . . 6 211 43 . . Treads 1 | . . . . . . . . . . . . . . . 1 Legs 3846 | 1 221 154 100 350 1263 79 155 338 440 271 417 . 57 . . Wheels . | . . . . . . . . . . . . . . . . Hover 835 | . . . . . . . . . . . . . . 184 651 Flight 182 | . . . . . . . . . . . . . 167 15 . Fastest Speed 32 | 120 120 190 120 120 113 113 113 115 115 120 50 50 32 32 55 Average Speed 139 | 120 165 190 176 196 132 113 136 178 152 120 137 50 67 165 128 Slowest Speed 320 | 120 190 190 190 260 260 113 189 190 193 120 250 200 200 320 196 Overloaded Moves 178 | . . . . . . . . . . . . . 163 15 . Propulsion Burnouts 1 | . . . . . . . . . . . . . . 1 . Robots Hopped 3 | . . . . . . . . . . . . . 3 . . Cave-ins Triggered . | . . . . . . . . . . . . . . . . Exploration Rate (%) 38 | 2 55 17 10 60 31 3 84 10 60 56 61 41 12 86 21 Regions Visited 15 Branch Regions 5 Pre-discovered Areas 3 | . . . . . . . . . 2 1 . . . . . Known Exits Taken 5 | . . 1 1 1 1 1 . . . . . . . . . Unknown Exits Taken 7 | 1 1 . . . . . . 1 1 1 1 1 . . . Scrap Searched 4 | . . . . . . . . . 2 1 . 1 . . . Spaces Dug . | . . . . . . . . . . . . . . . . Terrain Destroyed 324 | . 9 . . 67 14 . 1 . 1 2 1 . 16 . 213 Melee . | . . . . . . . . . . . . . . . . Projectile 28 | . . . . 8 . . 1 . 1 2 1 . 3 . 12 AOE 296 | . 9 . . 59 14 . . . . . . . 13 . 201 Terrain Rammed . | . . . . . . . . . . . . . . . . Walls Destroyed . | . . . . . . . . . . . . . . . . Machines Disabled . | . . . . . . . . . . . . . . . . Actions | -11 -10 -9 -8 -8 -7 -6 -6 -5 -5 -5 -5 -4 -4 -4 -4 --------- Run | Jun Mat Mat Mat Sto Fac Fac DSF Fac Upp Upp War Pro Fac Was Fac Total 6036 | . 264 176 125 518 1471 86 199 379 479 312 457 217 314 219 820 Wait 86 | . . 1 . 18 11 . . 1 1 . . 2 16 8 28 Move 5104 | . 220 153 99 349 1262 78 154 337 439 270 422 210 261 198 652 Hop 3 | . . . . . . . . . . . . . 3 . . Pick Up 47 | . 8 1 1 8 7 1 5 4 3 . 3 . . 2 4 Fast Attach 97 | . 3 3 3 12 17 1 4 3 7 4 6 2 10 6 16 Attach 39 | . . . 1 6 3 2 1 2 . 2 2 2 2 2 14 Detach 34 | . 1 . . 4 5 . 3 1 1 . 3 1 4 . 11 Swap 59 | . 4 4 . 8 24 2 1 5 1 5 . . . . 5 Drop 94 | . 8 4 2 12 28 1 5 5 6 5 3 . 2 1 12 Fire 420 | . 20 10 16 92 103 1 21 21 21 26 15 . 14 2 58 Melee 25 | . . . . 4 . . . . . . . . 2 . 19 Ram . | . . . . . . . . . . . . . . . . Kick 12 | . . . 3 . 7 . . . . . 2 . . . . Crush . | . . . . . . . . . . . . . . . . Escape Stasis 10 | . . . . 5 . . 5 . . . . . . . . Rewire 1 | . . . . . . . . . . . . . . . 1 Trap 5 | . . . . . 4 . . . . . 1 . . . . Miscellaneous . | . . . . . . . . . . . . . . . . Route ------- -11/Junkyard -10/Materials (discovered 4 exits: *Mat x2 / [*Min x2]) -9/Materials -8/Materials -8/Storage -7/Factory (discovered 2 exits: *Fac x2) -6/Factory -6/DSF -5/Factory -5/Upper Caves -5/Upper Caves -5/Warlord -4/Proximity Caves -4/Factory -4/Waste -4/Factory (discovered 5 exits: Upp x2 / Ext x2 / *Arm) History --------- Turn | Location | Event 1 | -11/Junkyard | Discovered new exit (range 0) 1 | -11/Junkyard | Entered Materials 1 | -10/Materials | Discovered new exit (range 8) 80 | -10/Materials | Discovered new exit (range 8) 306 | -10/Materials | Build established: Mutant 307 | -10/Materials | Discovered new exit (range 16) 417 | -10/Materials | Discovered new exit (range 5) 446 | -10/Materials | Entered another Materials area 446 | -9/Materials | Evolved 2 slots: Utility x2 746 | -9/Materials | Discovered new exit (range 18) 776 | -9/Materials | Identified exit to Materials 780 | -9/Materials | Entered another Materials area 780 | -8/Materials | Evolved 2 slots: Utility x1, Weapon x1 871 | -8/Materials | Discovered new exit (range 17) 1014 | -8/Materials | Identified exit to Storage 1016 | -8/Materials | Entered Storage 1237 | -8/Storage | Lost 3 parts (1p1u1w) 1320 | -8/Storage | Build established: Scavenger-Skirmisher 1623 | -8/Storage | Build established: Scavenger-Mutant 1816 | -8/Storage | First assault squad dispatched 1970 | -8/Storage | Repaired Grenade Launcher 1976 | -8/Storage | Discovered new exit (range 5) 2005 | -8/Storage | Build established: Scavenger-Skirmisher 2031 | -8/Storage | Identified exit to Factory 2033 | -8/Storage | Entered Factory 2033 | -7/Factory | Evolved 2 slots: Propulsion x1, Weapon x1 2196 | -7/Factory | Discovered new exit (range 12) 2219 | -7/Factory | Identified exit to Factory 2503 | -7/Factory | Garrison activated, responded to threat 2740 | -7/Factory | Fabricated H-55 Commando (x2) 2750 | -7/Factory | Fabricated H-55 Commando? 2754 | -7/Factory | Destroyed 7 combat bots 3060 | -7/Factory | Garrison activated, responded to threat 3106 | -7/Factory | Cargo convoy interrupted 3233 | -7/Factory | First assault squad dispatched 3363 | -7/Factory | Destroyed 8 combat bots 3443 | -7/Factory | Build established: Scavenger-Gunner 3641 | -7/Factory | Fabricated H-55 Commando? 3876 | -7/Factory | Fabricated H-55 Commando? 4033 | -7/Factory | Discovered exit to Factory (range 6) 4084 | -7/Factory | Entered another Factory area 4084 | -6/Factory | Evolved 2 slots: Utility x1, Weapon x1 4183 | -6/Factory | Identified exit to DSF 4184 | -6/Factory | Entered DSF 4218 | -6/DSF | Additional patrols routed to DSF 4265 | -6/DSF | Discovered new exit (range 16) 4275 | -6/DSF | Build established: Hacker-Gunner 4373 | -6/DSF | Found Powered Armor 4420 | -6/DSF | Sterilization system engaged 4440 | -6/DSF | Ambient heat levels rising (+10) 4455 | -6/DSF | Ambient heat levels rising (+10) 4470 | -6/DSF | Ambient heat levels rising (+10) 4485 | -6/DSF | Ambient heat levels rising (+10) 4487 | -6/DSF | Entered Factory 4487 | -5/Factory | Evolved 2 slots: Propulsion x1, Utility x1 4737 | -5/Factory | Build established: Scavenger-Tank 5163 | -5/Factory | Discovered new exit (range 6) 5170 | -5/Factory | Entered Upper Caves 5171 | -5/Upper Caves | Encountered a Warlord checkpoint 5176 | -5/Upper Caves | Met a Warlord Commander 5177 | -5/Upper Caves | Learned location of Warlord (-5) 5220 | -5/Upper Caves | Found Encrypted Comm Array 5294 | -5/Upper Caves | Learned Factory terminal intel 5341 | -5/Upper Caves | Spotted B-75 Beast 5384 | -5/Upper Caves | Destroyed B-75 Beast 5895 | -5/Upper Caves | Discovered new exit (range 15) 5913 | -5/Upper Caves | Entered another Upper Caves area 5967 | -5/Upper Caves | Attracted the attention of an 0b10 checkpoint 6308 | -5/Upper Caves | Discovered new exit (range 10) 6319 | -5/Upper Caves | Entered Warlord 6367 | -5/Warlord | System corruption cleaned by Quarantine Array 6551 | -5/Warlord | Build established: Scavenger-Gunner 6681 | -5/Warlord | Met Warlord 6705 | -5/Warlord | Found Prototype Device 6705 | -5/Warlord | Identified Minesniffer Drone Bay 6706 | -5/Warlord | Warlord's base attacked by MAIN.C 6728 | -5/Warlord | Found Minesniffer Drone Bay 6920 | -5/Warlord | Spotted B-86 Titan 6936 | -5/Warlord | Discovered new exit (range 12) 6962 | -5/Warlord | Entered Proximity Caves 6978 | -4/Proximity Caves | Spotted B-86 Titan 6991 | -4/Proximity Caves | Lost 14 parts (1p5n3u5w) 7021 | -4/Proximity Caves | Spotter reported a threat 7025 | -4/Proximity Caves | Core integrity fell below 50% 7055 | -4/Proximity Caves | Lost 3 parts (2u1w) 7070 | -4/Proximity Caves | Discovered new exit (range 10) 7077 | -4/Proximity Caves | Entered Factory 7077 | -4/Factory | Evolved 2 slots: Utility x2 7078 | -4/Factory | Loaded intel: 28 terminal locations 7230 | -4/Factory | Build established: Mutant 7277 | -4/Factory | Lost 3 parts (1n1u1w) 7317 | -4/Factory | System corruption reached 10% 7332 | -4/Factory | Manually triggered Chute Trap 7332 | -4/Factory | Sucked down chute 7332 | -4/Factory | Entered Waste 7333 | -4/Waste | Joined by Warlord forces that had cleared the area 7370 | -4/Waste | A Compactor rumbled back to life 7371 | -4/Waste | Spotted C-40 Crusher 7381 | -4/Waste | Destroyed C-40 Crusher 7478 | -4/Waste | Found Damper Plating 7503 | -4/Waste | Discovered new exit (range 12) 7687 | -4/Waste | Entered Factory 7687 | -4/Factory | Accompanied by 20 allies 7788 | -4/Factory | Build established: Hacker-Tank 8010 | -4/Factory | Spotted B-86 Titan 8022 | -4/Factory | Core integrity fell below 50% 8035 | -4/Factory | Allies destroyed B-86 Titan 8108 | -4/Factory | Identified exit to Upper Caves 8108 | -4/Factory | Identified exit to Extension 8108 | -4/Factory | Identified exit to Armory 8526 | -4/Factory | Lost 3 parts (1p1u1w) 8715 | -4/Factory | Spotted B-86 Titan 8738 | -4/Factory | Core integrity fell below 20% 8756 | -4/Factory | Build established: Hacker-Mutant 8819 | -4/Factory | Destroyed by H-77 Assassin with High-powered Shotgun Last Messages --------------- 08807_ Slug penetrates Wall. 08809_ U-05 Engineer builds a Wall. 08809_ K-01 Serf collects debris. 08811_ Penetrated by Slug. 08811_ Slug penetrates Wall. 08811_ Hpw. Shotgun destroyed. 08812_ Penetrated by Slug. 08812_ Slug penetrates U-05 Engineer. 08812_ Slug penetrates Wall. 08813_ U-05 Engineer lays Concrete. 08813_ K-01 Serf collects debris. 08814_ U-05 Engineer builds a Wall. 08814_ Slug penetrates Wall. 08814_ Mic. Fission Core destroyed. 08815_ Penetrated by Slug. 08815_ Acquired 59 matter. 08818_ System corrupted: Imp. Gyrokinetic Inverter rejected. 08818_ Acquired Imp. Gyrokinetic Inverter. 08819_ U-05 Engineer builds a Wall. 08819_ Slug penetrates Wall. Map ----- +----------------------------------------------------+ | """" #???????????????##%#####?????????# | | ####?????????????#=#?????????????# | | " +?????????????# #?????????????# | | =% #??????????####%#?????????????#! | | |= #??????????# #????????###### | | !% +??????????# #???###### + | | #" F"### ##??????????# #???# #### = | | #""""#?# #???? ???# #???# #??# | | ######?# #? ???# #???# #??# | | ######## " # # "##?# #???# #??# | | # ! # # # #?# #???# #??# | | + ! # # #?# #???# #??# | | # # # # ! #?# #???# #??######## | | #|!/ # #? #?# #???# #???####### | | #?! ! # ### ### h #???# #???# ! | | #?! # ##" ! ;# ##### #???# ! | | ##?## ## # # ! # ##### | | #???### # u h + | | #????## # # ######## | | ###### ## ; ##+########??????# | | # # ## ## ??????????# | | #?# # # """ ??????????####### | | ### # % = # """ ""??????????????? | | % + """ """?????????????? | | ##### % % # "" ""?????????????? | | ???# # ###### @ # "" "??????????????? | | ???# ## ##????####### ??? ??????????????? | | ?# # # # ##???????????? ??????????????????? | | # ## # # ##?????????????###??????????????????? | | | | | | | | | | | | | | | | | | | | | | | | | | | | | | | | | | | | | | | | | | | +----------------------------------------------------+ Best States ------------- Heat Dissipation 81 Coolant Potential 80 Energy Generation 25 Energy Capacity 350 Matter Stores 300 Matter Capacity 300 Sight Range 22 Terrain Scan Density 10 Corruption Block 12 Armor Coverage 1750 Resistance: KI 20 Resistance: TH 20 Resistance: EX 20 Resistance: EM 100 Resistance: I 20 Resistance: S 20 Resistance: P 20 Propulsion Shielding 66 Utility Shielding 66 Weapon Cycling 20 Evasion (%) 63 Targeting Accuracy 8 Melee Accuracy 6 Target Analysis 11 Core Analysis 6 Recoil Reduction 1 Offensive Hacking 22 Defensive Hacking 10 Authchip Count 1 Item Schematics ----------------- Weapon Shielding | -10/Materials | Hacked Imp. Cooling System | -6/Factory | Scanalyzed Robot Schematics ------------------ H-55 Commando | -7/Factory | Hacked Fabricated ------------ H-55 Commando | x2 | -7/Factory H-55 Commando | x2 | -7/Factory H-55 Commando | x2 | -7/Factory H-55 Commando | x2 | -7/Factory Alien Tech Used ----------------- None Achievements -------------- None Challenges ------------ None Game ------ Seed AuthchipProjectionAutogun Manual? 0 Play Time 01:02:36 Cumulative 542.9 hours Start 2023.12.02 @ 17:28:12 End 2023.12.04 @ 09:12:35 Sessions 7 Manual Loads 0 Difficulty Adventurer Special Mode None Game No. 419 Rogue 167 Adventurer 109 Explorer 143 Win Type - Total 23 Types 19/0/3/0/0/0/0/1/0 Lore% 76 Gallery% 89 Achievement% 73 Wizard Run 0 Options --------- ASCII 0 Keyboard 1 Movement Numpad Keybinds 0 Fullscreen 2 Font 18/X11Bold Map View 76x50 Tactical HUD 1 Map Filters NONE Filters NONE Steam 1 RUN: cd5a485e-3c53-408e-b44f-97f351b2d0ff